bitfinex/quotes_BTCUSD_20250123
["timestamp","ask_amount","ask_price","bid_price","bid_amount"]
[1737596737068,0.3878149,103230.0,103220.0,0.26874013]
[1737596737396,0.4378149,103230.0,103220.0,0.26874013]
[1737596738266,0.4578149,103230.0,103220.0,0.37690313]
[1737596738461,0.3878149,103230.0,103220.0,0.48464485]
[1737596738608,0.4078149,103230.0,103220.0,0.53004485]
[1737596738810,0.4578149,103230.0,103220.0,0.53004485]
[1737596739217,0.4578149,103230.0,103220.0,0.42230313]
[1737596739437,0.4578149,103230.0,103220.0,0.31414013]
[1737596740174,0.4578149,103230.0,103220.0,0.42121513]
[1737596741011,0.3878149,103230.0,103220.0,0.42121513]
[1737596741215,0.4078149,103230.0,103220.0,0.52895685]
[1737596741426,0.29046761,103230.0,103220.0,0.55195685]
[1737596742035,0.28053079,103230.0,103220.0,0.65969857]
[1737596742310,0.28053079,103230.0,103220.0,0.55195685]
[1737596742823,0.82253079,103230.0,103220.0,0.55195685]
[1737596743527,0.82253079,103230.0,103220.0,0.44488185]
[1737596743657,0.82253079,103230.0,103220.0,2.76976085]
[1737596744317,0.91987808,103230.0,103220.0,1.03100113]
[1737596744514,0.91987808,103230.0,103220.0,0.56700885]
[1737596744711,0.93987808,103230.0,103220.0,0.31414013]
[1737596744928,0.93987808,103230.0,103220.0,0.66796885]
[1737596745133,0.93987808,103230.0,103220.0,0.50366213]
[1737596745376,0.93987808,103230.0,103220.0,0.54885685]
[1737596745844,0.93987808,103230.0,103220.0,0.44111513]
[1737596746006,0.93987808,103230.0,103220.0,0.42966213]
[1737596746219,0.93987808,103230.0,103220.0,0.59610385]
[1737596747370,0.98987808,103230.0,103220.0,0.59610385]
[1737596747574,0.98987808,103230.0,103220.0,0.48836213]
[1737596747805,0.42787808,103230.0,103220.0,0.26874013]
[1737596749050,0.42787808,103230.0,103220.0,0.19034013]
[1737596749457,0.43181838,103230.0,103220.0,0.04034013]
[1737596749800,0.37787808,103230.0,103220.0,0.19034013]
[1737596750265,0.4856198,103230.0,103220.0,0.0001425]
[1737596750397,0.37787808,103230.0,103220.0,0.0001425]
[1737596750857,0.4856198,103230.0,103220.0,0.0001425]
[1737596751306,0.41312872,103230.0,103220.0,0.0001425]
[1737596752302,0.37787808,103230.0,103220.0,0.0001425]
[1737596754491,0.37817754,103230.0,103220.0,0.0001425]
[1737596754744,0.4168907,103230.0,103220.0,0.0001425]
[1737596755155,0.37817754,103230.0,103220.0,0.0001425]
[1737596755482,3.0698575,103220.0,103210.0,0.28537916]
[1737596755667,3.11720479,103220.0,103210.0,0.28537916]
[1737596755797,3.39763797,103220.0,103210.0,0.28537916]
[1737596758217,3.37763797,103220.0,103210.0,0.28537916]
[1737596758457,3.44714039,103220.0,103210.0,0.05837916]
[1737596758658,3.60098211,103220.0,103210.0,0.01998855]
[1737596758889,3.49324039,103220.0,103210.0,0.01998855]
[1737596759132,3.42373797,103220.0,103210.0,0.01998855]
[1737596762593,3.43068852,103220.0,103210.0,0.01998855]
[1737596762757,3.52756852,103220.0,103210.0,0.01998855]
[1737596763224,3.62936852,103220.0,103210.0,0.01998855]
[1737596763424,3.83445753,103220.0,103210.0,0.00588483]
[1737596763645,3.95105753,103220.0,103210.0,0.00588483]
[1737596764036,4.02671024,103220.0,103210.0,0.00588483]
[1737596765814,4.02671024,103220.0,103210.0,0.00602743]
[1737596766013,4.05735821,103220.0,103210.0,0.00602743]
[1737596766320,4.0280097,103220.0,103210.0,0.00602743]
[1737596768374,4.0050097,103220.0,103210.0,0.00602743]
[1737596770299,4.04807261,103220.0,103210.0,0.00602743]
[1737596770626,4.0050097,103220.0,103210.0,0.00602743]
[1737596772062,3.47808798,103220.0,103210.0,0.00602743]
[1737596772822,3.43198798,103220.0,103210.0,0.00602743]
[1737596773524,3.43098798,103220.0,103210.0,0.08242743]
[1737596773974,3.42098798,103220.0,103210.0,0.08242743]
[1737596774716,3.36793743,103220.0,103210.0,0.08242743]
[1737596775468,3.38793743,103220.0,103210.0,0.08242743]
[1737596775719,3.36793743,103220.0,103210.0,0.08242743]
[1737596779389,3.36793743,103220.0,103210.0,0.00602743]
[1737596783682,3.36793743,103220.0,103210.0,0.0001426]
[1737596784103,3.36793743,103220.0,103210.0,0.0824426]
[1737596786403,3.62025915,103220.0,103210.0,0.0001426]
[1737596786629,3.72205915,103220.0,103210.0,0.0001426]
[1737596787844,3.87205915,103220.0,103210.0,0.0001426]
[1737596788051,0.198689,103210.0,103200.0,0.0110801]
[1737596788252,0.94195291,103210.0,103200.0,0.0110801]
[1737596788457,0.83421119,103210.0,103200.0,0.0110801]
[1737596789746,0.98626391,103210.0,103190.0,0.0001426]
[1737596789943,0.30644972,103190.0,103180.0,0.0001425]
[1737596790261,0.40379701,103190.0,103180.0,0.0001425]
[1737596790465,0.68423019,103190.0,103180.0,0.0001425]
[1737596791256,0.68423019,103190.0,103180.0,0.00064781]
[1737596791451,0.73240677,103190.0,103180.0,0.00064781]
[1737596791854,0.68423019,103190.0,103180.0,0.00064781]
[1737596793183,0.70723019,103190.0,103180.0,0.00064781]
[1737596794197,0.73634442,103190.0,103180.0,0.00064781]
[1737596794681,0.85454442,103190.0,103180.0,0.00064781]
[1737596795370,0.85554442,103190.0,103180.0,0.00064781]
[1737596795705,0.95289171,103190.0,103180.0,0.00064781]
[1737596797292,0.97245885,103190.0,103180.0,0.00064781]
[1737596797975,0.87555085,103190.0,103170.0,1e-08]
[1737596798177,0.096946,103150.0,103140.0,0.0772]
[1737596798418,0.67942419,103150.0,103120.0,0.1226]
[1737596798573,0.096955,103140.0,103130.0,0.09696]
[1737596798798,0.28043318,103140.0,103130.0,0.09696]
[1737596798995,0.37738818,103140.0,103130.0,0.09696]
[1737596799294,0.37738818,103140.0,103120.0,0.1226]
[1737596799295,1.06765648,103140.0,103120.0,0.413507]
[1737596799624,1.06765648,103140.0,103120.0,0.41365353]
[1737596799625,0.09734729,103130.0,103120.0,0.41365353]
[1737596799829,0.48552219,103130.0,103120.0,0.36825353]
[1737596800029,0.58248619,103130.0,103120.0,0.07734653]
[1737596800237,0.67983348,103130.0,103120.0,0.07734653]
[1737596800659,0.67983348,103130.0,103120.0,0.09712053]
[1737596800793,0.67983348,103130.0,103120.0,0.00014653]
[1737596800794,1.55258619,103130.0,103120.0,0.00014653]
[1737596801687,0.68428619,103130.0,103120.0,0.00014653]
[1737596802862,0.8683,103120.0,103110.0,0.1743235]
[1737596803053,1.17036301,103120.0,103110.0,0.07749406]
[1737596803281,1.45079619,103120.0,103110.0,0.07749406]
[1737596804977,1.45079619,103120.0,103110.0,0.00029406]
[1737596805379,1.45079619,103120.0,103110.0,0.09727706]
[1737596805922,1.24608047,103120.0,103110.0,0.09727706]
[1737596806322,1.34305447,103120.0,103110.0,0.09727706]
[1737596806523,1.24608047,103120.0,103110.0,0.09727706]
[1737596806949,1.24248047,103120.0,103110.0,0.17447706]
[1737596807729,1.26248047,103120.0,103110.0,0.17447706]
[1737596808576,1.30124147,103120.0,103110.0,0.17447706]
[1737596808784,1.30124147,103120.0,103110.0,0.32447706]
[1737596809225,1.28124147,103120.0,103110.0,0.32447706]
[1737596809815,1.30124147,103120.0,103110.0,0.32447706]
[1737596811350,0.75924147,103120.0,103110.0,0.32447706]
[1737596812090,0.73924147,103120.0,103110.0,0.32447706]
[1737596812657,0.94463016,103120.0,103110.0,0.17447706]
[1737596813084,0.84728287,103120.0,103110.0,0.17447706]
[1737596813288,0.73954115,103120.0,103110.0,0.17447706]
[1737596815130,0.73954115,103120.0,103110.0,0.00029406]
[1737596815131,0.62155687,103120.0,103110.0,0.00029406]
[1737596815337,0.62155687,103120.0,103110.0,0.09727706]
[1737596815549,0.71890416,103120.0,103110.0,0.09727706]
[1737596815756,0.62155687,103120.0,103110.0,0.09727706]
[1737596815956,0.62155687,103120.0,103110.0,0.00029406]
[1737596816191,0.72335687,103120.0,103110.0,0.00029406]
[1737596818333,1.07459859,103120.0,103110.0,0.00029406]
[1737596818496,0.221783,103110.0,103100.0,0.0158217]
[1737596818695,0.81504691,103110.0,103100.0,0.01587222]
[1737596819479,0.9123942,103110.0,103100.0,0.01587222]
[1737596820254,0.198793,103100.0,103090.0,0.0001426]
[1737596820463,0.291016,103090.0,103070.0,0.3708896]
[1737596820700,0.20508901,103080.0,103070.0,0.37094013]
[1737596820939,0.48552219,103080.0,103070.0,0.37094013]
[1737596821187,0.37778047,103080.0,103070.0,0.37094013]
[1737596821790,0.55544577,103080.0,103070.0,0.37094013]
[1737596822041,0.48552219,103080.0,103070.0,0.37094013]
[1737596822244,0.48552219,103080.0,103070.0,0.52094013]
[1737596822245,0.42778047,103080.0,103070.0,0.52094013]
[1737596822462,0.39778047,103080.0,103070.0,0.52094013]
[1737596822669,0.37778047,103080.0,103070.0,0.52094013]
[1737596822914,0.37778047,103080.0,103070.0,0.52996597]
[1737596822915,0.39778047,103080.0,103070.0,0.52996597]
[1737596824100,0.37778047,103080.0,103070.0,0.52996597]
[1737596824541,0.37778047,103080.0,103070.0,0.37094013]
[1737596825669,0.39778047,103080.0,103070.0,0.37094013]
[1737596827968,0.93978047,103080.0,103070.0,0.37094013]
[1737596828608,0.91978047,103080.0,103070.0,0.52094013]
[1737596829192,0.91978047,103080.0,103070.0,0.57064013]
[1737596829650,0.91978047,103080.0,103070.0,0.67838185]
[1737596829833,0.91978047,103080.0,103070.0,0.57064013]
[1737596830355,0.91978047,103080.0,103070.0,0.67838185]
[1737596830881,0.91978047,103080.0,103070.0,0.57064013]
[1737596831488,0.91978047,103080.0,103070.0,0.67838185]
[1737596831899,0.91978047,103080.0,103070.0,0.57064013]
[1737596833240,0.91978047,103080.0,103070.0,0.59248298]
[1737596833736,0.37778047,103080.0,103070.0,0.59248298]
[1737596834645,0.44778047,103080.0,103070.0,0.59248298]
[1737596834849,0.49255852,103080.0,103070.0,0.54278298]
[1737596835080,0.39778047,103080.0,103070.0,0.52094013]
[1737596836044,0.44778047,103080.0,103070.0,0.52094013]
[1737596836248,0.39778047,103080.0,103070.0,0.52094013]
[1737596838089,0.39778047,103080.0,103070.0,0.37094013]
[1737596838768,0.39778047,103080.0,103070.0,0.00019313]
[1737596838769,0.86117591,103080.0,103070.0,0.00019313]
[1737596838932,0.75343419,103080.0,103070.0,0.00019313]
[1737596839309,0.77272263,103080.0,103070.0,0.00019313]
[1737596840049,0.74972263,103080.0,103070.0,0.00019313]
[1737596840633,0.77155904,103080.0,103070.0,0.00019313]
[1737596841427,0.72545904,103080.0,103070.0,0.00019313]
[1737596843035,0.62844704,103080.0,103070.0,0.00019313]
[1737596843248,0.41890532,103080.0,103070.0,0.09721413]
[1737596843539,0.51591732,103080.0,103070.0,0.09721413]
[1737596843712,0.41890532,103080.0,103070.0,0.09721413]
[1737596843883,0.61326461,103080.0,103070.0,0.09721413]
[1737596844086,0.62365904,103080.0,103070.0,0.00019313]
[1737596845178,0.51591732,103080.0,103070.0,0.00019313]
[1737596845586,0.62365904,103080.0,103070.0,0.00019313]
[1737596847797,0.19883,103060.0,103050.0,4.069e-05]
[1737596848003,0.8647,103040.0,103030.0,0.225254]
[1737596848206,1.24248047,103040.0,103030.0,0.2257568]
[1737596848618,1.24248047,103040.0,103030.0,0.1797568]
[1737596849666,1.33952947,103040.0,103030.0,0.0827028]
[1737596850298,1.33952947,103040.0,103030.0,0.0005028]
[1737596850299,0.62817119,103040.0,103030.0,0.0005028]
[1737596850498,5.01278362,103000.0,102990.0,0.1477821]
[1737596850699,5.39056409,103000.0,102990.0,0.1477821]
[1737596850928,5.39056409,103000.0,102990.0,0.40552382]
[1737596851124,5.39056409,103000.0,102990.0,0.31962734]
[1737596851321,5.39056409,103000.0,102990.0,0.41672334]
[1737596851532,5.39056409,103000.0,102990.0,0.26672334]
[1737596851867,5.39106729,103000.0,102990.0,0.26672334]
[1737596852052,5.39106729,103000.0,102990.0,0.41672334]
[1737596852490,5.39106729,103000.0,102990.0,0.52446506]
[1737596852693,5.39106729,103000.0,102990.0,0.41672334]
[1737596853446,5.39106729,103000.0,102990.0,0.21992334]
[1737596854231,5.39106729,103000.0,102990.0,0.36992334]
[1737596854658,5.39106729,103000.0,102990.0,0.28370314]
[1737596856649,5.39106729,103000.0,102990.0,0.51984486]
[1737596859412,5.39106729,103000.0,102990.0,0.86324558]
[1737596861301,5.39106729,103000.0,102990.0,0.75550386]
[1737596861544,5.39106729,103000.0,102990.0,0.86324558]
[1737596862146,5.39106729,103000.0,102990.0,0.51984486]
[1737596862779,5.39106729,103000.0,102990.0,0.21380314]
[1737596863128,5.39106729,103000.0,102990.0,0.47154486]
[1737596865515,5.39106729,103000.0,102990.0,0.32154486]
[1737596867942,5.39106729,103000.0,102990.0,0.87372258]
[1737596873003,5.29401946,103000.0,102990.0,0.89672258]
[1737596876465,5.39136675,103000.0,102990.0,0.99621258]
[1737596876697,5.39136675,103000.0,102990.0,0.95690758]
[1737596877112,5.39136675,103000.0,102990.0,0.86527958]
[1737596877315,0.37858313,103000.0,102990.0,0.32154486]
[1737596877523,0.37858313,103000.0,102990.0,0.24144486]
[1737596877664,0.37858313,103000.0,102990.0,0.39144486]
[1737596882594,0.37858313,103000.0,102990.0,0.28370314]
[1737596882803,0.42858313,103000.0,102990.0,0.28370314]
[1737596884332,0.37858313,103000.0,102990.0,0.39144486]
[1737596885089,0.42858313,103000.0,102990.0,0.39144486]
[1737596885294,0.42858313,103000.0,102990.0,0.28370314]
[1737596885505,0.37858313,103000.0,102990.0,0.39144486]
[1737596888983,0.42858313,103000.0,102990.0,0.28370314]
[1737596889763,0.37858313,103000.0,102990.0,0.39144486]
[1737596890755,0.37858313,103000.0,102990.0,0.49918658]
[1737596890956,0.37858313,103000.0,102990.0,1.22622458]
[1737596891526,0.37858313,103000.0,102990.0,1.17755258]
[1737596892714,0.37858313,103000.0,102990.0,0.66495286]
[1737596892842,0.37858313,103000.0,102990.0,0.58745286]
[1737596893047,0.37858313,103000.0,102990.0,0.46894486]
[1737596893452,0.37858313,103000.0,102990.0,0.62596386]
[1737596893710,0.37858313,103000.0,102990.0,0.58607686]
[1737596894288,0.37858313,103000.0,102990.0,0.69381858]
[1737596894493,0.37858313,103000.0,102990.0,0.74371858]
[1737596894813,0.37858313,103000.0,102990.0,0.62658658]
[1737596895074,0.37858313,103000.0,102990.0,1.13643558]
[1737596895276,0.37858313,103000.0,102990.0,0.95150258]
[1737596895657,0.37858313,103000.0,102990.0,0.82076086]
[1737596895914,0.37858313,103000.0,102990.0,0.62381286]
[1737596896097,0.37858313,103000.0,102990.0,0.51884486]
[1737596897119,0.19778429,103000.0,102990.0,0.64958658]
[1737596897328,0.15978429,103000.0,102990.0,0.64958658]
[1737596897537,0.15978429,103000.0,102990.0,1.63415858]
[1737596897764,0.15978429,103000.0,102990.0,1.59369958]
[1737596898196,0.01231197,103000.0,102990.0,1.59369958]
[1737596898611,0.00688507,103000.0,102990.0,1.71104687]
[1737596898828,0.00510945,103000.0,102990.0,1.71104687]
[1737596899030,0.00029946,103040.0,103030.0,0.0784]
[1737596899244,0.38880675,103040.0,103030.0,0.33629283]
[1737596900435,0.38880675,103040.0,103030.0,0.89281683]
[1737596900838,0.38880675,103040.0,103030.0,0.90439683]
[1737596902391,0.29145946,103040.0,103030.0,0.90439683]
[1737596902803,0.29145946,103040.0,103030.0,0.92212064]
[1737596903037,0.29145946,103040.0,103030.0,0.58920464]
[1737596903252,0.38880675,103040.0,103030.0,0.56620464]
[1737596903459,0.38880675,103040.0,103030.0,0.24627492]
[1737596903664,0.38880675,103040.0,103030.0,0.16787492]
[1737596904045,0.38880675,103040.0,103030.0,0.27561664]
[1737596904251,0.38880675,103040.0,103030.0,0.16787492]
[1737596905203,0.38880675,103040.0,103030.0,0.27561664]
[1737596907092,0.38880675,103040.0,103030.0,0.16787492]
[1737596907311,9.10294575,103040.0,103030.0,0.16787492]
[1737596907544,9.15294575,103040.0,103030.0,0.16787492]
[1737596909275,9.10294575,103040.0,103030.0,0.27561664]
[1737596909484,9.10294575,103040.0,103030.0,0.77180064]
[1737596910442,9.10294575,103040.0,103030.0,0.67253464]
[1737596910654,9.10294575,103040.0,103030.0,0.65926664]
[1737596911537,9.10294575,103040.0,103030.0,0.24627492]
[1737596911777,9.10294575,103040.0,103030.0,0.35401664]
[1737596916672,9.10294575,103040.0,103030.0,0.67445564]
[1737596916859,9.10294575,103040.0,103030.0,0.59400364]
[1737596917063,9.10294575,103040.0,103030.0,0.53032464]
[1737596917945,9.10294575,103040.0,103030.0,0.16787492]
[1737596919566,9.10294575,103040.0,103030.0,0.27561664]
[1737596920330,9.10294575,103040.0,103030.0,0.72451564]
[1737596920602,9.10294575,103040.0,103030.0,0.43733164]
[1737596920805,9.10294575,103040.0,103030.0,0.27561664]
[1737596921749,9.10294575,103040.0,103030.0,0.16787492]
[1737596921995,9.10294575,103040.0,103030.0,0.01787492]
[1737596922175,9.12294575,103040.0,103030.0,0.01787492]
[1737596922832,9.12294575,103040.0,103030.0,0.00015111]
[1737596925245,10.14559475,103040.0,103030.0,0.00015111]
[1737596925478,11.16673647,103040.0,103030.0,0.00015111]
[1737596926642,11.05899475,103040.0,103030.0,0.00015111]
[1737596926841,10.98194575,103040.0,103030.0,0.00015111]
[1737596928289,10.90104575,103040.0,103030.0,0.00015111]
[1737596928526,10.85594575,103040.0,103030.0,0.00015111]
[1737596928700,10.87549578,103040.0,103030.0,0.00015111]
[1737596929066,10.85594575,103040.0,103030.0,0.00015111]
[1737596930262,10.88594575,103040.0,103030.0,0.00015111]
[1737596930521,10.83594575,103040.0,103030.0,0.00015111]
[1737596931058,10.83594575,103040.0,103030.0,0.08325111]
[1737596931826,9.42564575,103040.0,103030.0,0.08325111]
[1737596932577,9.47564575,103040.0,103030.0,0.08325111]
[1737596933126,9.47564575,103040.0,103030.0,0.00015111]
[1737596934011,9.42564575,103040.0,103030.0,0.25789283]
[1737596934433,9.42564575,103040.0,103010.0,0.10774172]
[1737596934633,0.11734729,103020.0,103000.0,0.0832426]
[1737596934853,0.45850729,103020.0,103000.0,0.10109821]
[1737596935058,0.38850729,103020.0,103010.0,0.10774172]
[1737596935261,0.38850729,103020.0,103010.0,0.48248572]
[1737596935897,0.38850729,103020.0,103010.0,0.45605072]
[1737596936504,0.38850729,103020.0,103010.0,0.60605072]
[1737596937589,0.38850729,103020.0,103010.0,0.41664572]
[1737596939764,0.38850729,103020.0,103010.0,0.15]
[1737596939970,0.38850729,103020.0,103010.0,0.25774172]
[1737596941000,0.38850729,103020.0,103010.0,0.15]
[1737596941419,0.38850729,103020.0,103010.0,0.25774172]
[1737596942222,0.38850729,103020.0,103010.0,0.55842372]
[1737596942442,0.38850729,103020.0,103010.0,0.58142372]
[1737596942794,0.38850729,103020.0,103010.0,0.55842372]
[1737596943410,0.38850729,103020.0,103010.0,0.53553472]
[1737596943618,0.38850729,103020.0,103010.0,0.15]
[1737596947168,0.38850729,103020.0,103010.0,0.25774172]
[1737596947402,0.38850729,103020.0,103010.0,0.87284944]
[1737596947610,0.38850729,103020.0,103010.0,0.76510772]
[1737596948056,0.38850729,103020.0,103010.0,0.73444672]
[1737596949717,0.29116,103020.0,103010.0,0.75744672]
[1737596950286,0.38850729,103020.0,103010.0,0.75744672]
[1737596951169,0.29116,103020.0,103010.0,0.40764172]
[1737596951523,0.29116,103020.0,103010.0,1.17480072]
[1737596951955,0.29116,103020.0,103010.0,1.04442172]
[1737596952129,0.29116,103020.0,103010.0,0.78884872]
[1737596952344,0.29116,103020.0,103010.0,0.73066672]
[1737596953330,0.29116,103020.0,103010.0,0.73080932]
[1737596953533,0.29116,103020.0,103010.0,0.83855104]
[1737596953975,0.29116,103020.0,103010.0,0.73080932]
[1737596956136,0.38850729,103020.0,103010.0,0.4563026]
[1737596956338,0.38850729,103020.0,103010.0,0.3415656]
[1737596956541,0.38850729,103020.0,103010.0,0.1501426]
[1737596956750,0.38850729,103020.0,103010.0,0.0001426]
[1737596956969,0.38850729,103020.0,103010.0,0.1501426]
[1737596957846,0.38850729,103020.0,103010.0,0.0001426]
[1737596958052,0.38850729,103020.0,103010.0,0.0863628]
[1737596959427,4.63789727,103000.0,102990.0,0.22310362]
[1737596959613,4.73524456,103000.0,102990.0,1.38618434]
[1737596959770,5.02640456,103000.0,102990.0,0.47936862]
[1737596959979,5.02640456,103000.0,102990.0,0.02920285]
[1737596960185,5.07640456,103000.0,102990.0,0.02920285]
[1737596960563,5.07655542,103000.0,102990.0,0.02920285]
[1737596962946,5.07655542,103000.0,102990.0,0.02802344]
[1737596962947,5.02655542,103000.0,102990.0,0.02802344]
[1737596963172,5.07655542,103000.0,102990.0,0.02802344]
[1737596966307,5.02655542,103000.0,102990.0,0.02802344]
[1737596966509,5.07655542,103000.0,102990.0,0.02802344]
[1737596971030,5.02655542,103000.0,102990.0,0.02802344]
[1737596971649,5.17896038,103000.0,102990.0,0.02802344]
[1737596971860,0.1039,102970.0,102960.0,0.0002027]
[1737596972092,0.44240729,102970.0,102960.0,0.0002027]
[1737596972295,0.42240729,102970.0,102960.0,0.0002027]
[1737596972707,0.38850729,102970.0,102960.0,0.0002027]
[1737596972858,0.43850729,102970.0,102960.0,0.0002027]
[1737596973280,0.45850729,102970.0,102960.0,0.0002027]
[1737596977167,0.76358862,102970.0,102960.0,0.0002027]
[1737596977345,0.81070362,102970.0,102960.0,0.0002027]
[1737596977522,0.74096401,102970.0,102960.0,0.0002027]
[1737596977929,0.64384901,102970.0,102960.0,0.0002027]
[1737596978914,0.53610729,102970.0,102960.0,0.0002027]
[1737596980443,0.07,102960.0,102950.0,0.1017532]
[1737596980647,0.097181,102900.0,102890.0,0.02252802]
[1737596980891,0.097181,102900.0,102850.0,0.1366875]
[1737596980892,0.097204,102880.0,102850.0,0.1366875]
[1737596981101,0.09734729,102860.0,102850.0,0.1366875]
[1737596981308,0.61346801,102860.0,102850.0,0.1366875]
[1737596981519,0.67218241,102860.0,102850.0,0.1366875]
[1737596981731,0.67218241,102860.0,102830.0,0.00422]
[1737596981732,0.07,102840.0,102830.0,0.00422]
[1737596982038,0.214572,102790.0,102720.0,0.195661]
[1737596982228,0.14734729,102770.0,102750.0,0.194646]
[1737596982442,0.49624901,102770.0,102740.0,0.09733]
[1737596982632,0.02,102750.0,102730.0,1.07838224]
[1737596982875,0.09734729,102740.0,102730.0,0.88372024]
[1737596983093,0.09734729,102740.0,102270.0,2.54583365]
[1737596983310,5.31954729,102670.0,102630.0,0.10774172]
[1737596983520,5.31954729,102670.0,102650.0,0.10774172]
[1737596983521,5.56070729,102670.0,102650.0,0.10774172]
[1737596983741,3.75118069,102610.0,102600.0,0.04829745]
[1737596983956,3.46964046,102610.0,102600.0,1.66053745]
[1737596984167,0.36592764,102660.0,102570.0,0.01875597]
[1737596984382,1.37879,102710.0,102570.0,0.01875597]
[1737596984383,1.03063742,102710.0,102630.0,0.04160154]
[1737596984590,0.19090388,102700.0,102680.0,0.16376078]
[1737596984791,1.05358209,102710.0,102690.0,2.87808878]
[1737596985006,0.35516,102710.0,102700.0,2.420983]
[1737596985216,0.40927309,102760.0,102730.0,0.01834639]
[1737596985423,0.26620911,102840.0,102750.0,0.22]
[1737596985623,0.09734729,102780.0,102770.0,0.36376078]
[1737596985833,0.09734729,102780.0,102770.0,0.47189632]
[1737596986077,0.3227,102820.0,102800.0,0.02]
[1737596986285,0.42004729,102810.0,102790.0,0.02]
[1737596986511,0.42004729,102810.0,102790.0,0.037]
[1737596986512,0.09734729,102800.0,102790.0,0.037]
[1737596986721,0.38914729,102800.0,102770.0,0.06718963]
[1737596986925,0.09734729,102780.0,102750.0,0.02]
[1737596987103,0.38914729,102780.0,102770.0,0.17]
[1737596987310,0.38914729,102780.0,102770.0,0.940115]
[1737596987518,0.38914729,102780.0,102770.0,0.866167]
[1737596987771,0.38914729,102780.0,102770.0,0.65429892]
[1737596987977,0.38914729,102780.0,102760.0,0.24987724]
[1737596988260,0.38914729,102780.0,102760.0,1.26687224]
[1737596988540,0.38914729,102780.0,102770.0,0.453024]
[1737596988750,0.38914729,102780.0,102770.0,0.379266]
[1737596989368,0.38914729,102780.0,102770.0,0.402266]
[1737596989610,0.38914729,102780.0,102770.0,0.3794088]
[1737596989786,0.38944718,102780.0,102770.0,0.0001428]
[1737596990355,0.38944718,102780.0,102770.0,0.8435718]
[1737596990764,0.29209989,102780.0,102770.0,0.8865718]
[1737596990995,0.20171598,102780.0,102770.0,0.9365718]
[1737596991197,0.20171598,102780.0,102770.0,1.03391909]
[1737596991607,0.20171598,102780.0,102770.0,0.8665718]
[1737596991820,0.20171598,102780.0,102770.0,0.6377378]
[1737596992016,0.29906327,102780.0,102770.0,0.6377378]
[1737596992425,0.29906327,102780.0,102770.0,0.6147378]
[1737596992629,0.29906327,102780.0,102770.0,0.2822218]
[1737596993449,0.29906327,102780.0,102770.0,0.3052218]
[1737596994804,0.29906327,102780.0,102770.0,0.2822218]
[1737596996278,0.29906327,102780.0,102770.0,0.3783458]
[1737596996439,0.3227,102750.0,102740.0,0.29169607]
[1737596996633,0.52411609,102750.0,102740.0,2.47818007]
[1737596997026,0.62146338,102750.0,102730.0,0.0467]
[1737596997236,0.09734729,102740.0,102730.0,0.0467]
[1737596997451,0.29876338,102740.0,102720.0,0.3312]
[1737596997657,0.29891363,102740.0,102730.0,0.228883]
[1737596997862,0.29891363,102740.0,102730.0,0.109768]
[1737596998462,0.20156634,102740.0,102730.0,0.40543734]
[1737596998664,0.20156634,102740.0,102730.0,0.38146407]
[1737596998865,0.20156634,102740.0,102730.0,0.109768]
[1737596999017,0.20156634,102740.0,102730.0,0.259768]
[1737596999622,0.20156634,102740.0,102730.0,0.15]
[1737596999826,0.29891363,102740.0,102730.0,0.72918]
[1737597000047,0.29891363,102740.0,102720.0,0.01486671]
[1737597000294,0.09734729,102730.0,102700.0,0.2967]
[1737597000473,0.09734729,102730.0,102710.0,1.167836]
[1737597000474,0.29876338,102730.0,102710.0,1.167836]
[1737597000645,0.29876338,102730.0,102720.0,0.23429]
[1737597000866,0.29876338,102730.0,102710.0,0.995513]
[1737597001101,0.29876338,102730.0,102720.0,0.15097343]
[1737597001310,0.29876338,102730.0,102720.0,0.679626]
[1737597002149,0.20141609,102730.0,102720.0,0.679626]
[1737597002438,0.20141609,102730.0,102720.0,0.702626]
[1737597002678,0.20141609,102730.0,102720.0,0.722626]
[1737597003090,0.20141609,102730.0,102720.0,0.178254]
[1737597003091,0.29876338,102730.0,102720.0,0.178254]
[1737597003301,0.29876338,102730.0,102700.0,0.2967]
[1737597003513,0.09734729,102720.0,102710.0,0.544522]
[1737597003758,0.29876338,102720.0,102700.0,0.0467]
[1737597003960,0.29876338,102720.0,102710.0,0.137498]
[1737597004482,0.29876338,102720.0,102700.0,0.255553]
[1737597004684,0.09734729,102710.0,102690.0,0.01521936]
[1737597004900,0.09734729,102700.0,102690.0,0.01521936]
[1737597005101,0.29876338,102700.0,102690.0,0.01521936]
[1737597005320,0.29876338,102700.0,102690.0,0.253613]
[1737597005654,0.29876338,102700.0,102690.0,0.156435]
[1737597005862,0.29876338,102700.0,102690.0,0.15]
[1737597006103,0.29876338,102700.0,102690.0,0.195841]
[1737597006303,0.29876338,102700.0,102610.0,0.01388]
[1737597006304,0.05,102690.0,102610.0,0.01388]
[1737597006507,0.36904336,102680.0,102640.0,0.01950849]
[1737597006745,0.57045945,102680.0,102660.0,0.15]
[1737597006992,0.57045945,102680.0,102640.0,0.26950849]
[1737597006993,0.542,102660.0,102640.0,0.25]
[1737597007204,0.74341609,102660.0,102650.0,0.40034833]
[1737597007443,0.74341609,102660.0,102650.0,0.54937429]
[1737597007850,0.47367828,102660.0,102650.0,0.279027]
[1737597008147,0.542,102650.0,102640.0,0.01478561]
[1737597008356,0.74341609,102650.0,102640.0,0.31709461]
[1737597008490,0.74341609,102650.0,102640.0,0.363773]
[1737597008848,0.74341609,102650.0,102630.0,1.000548]
[1737597009048,0.27226219,102640.0,102630.0,1.000548]
[1737597009268,0.20141609,102640.0,102630.0,1.000548]
[1737597009667,0.20141609,102640.0,102630.0,1.023548]
[1737597009898,0.57102557,102640.0,102630.0,1.000548]
[1737597010074,1.11302557,102640.0,102630.0,1.000548]
[1737597010253,0.59102557,102640.0,102630.0,0.463886]
[1737597010452,0.57102557,102640.0,102630.0,0.463886]
[1737597010656,0.59102557,102640.0,102630.0,0.463886]
[1737597010855,1.18302557,102640.0,102630.0,0.28372]
[1737597011057,0.62102557,102640.0,102630.0,0.105772]
[1737597011261,0.05,102630.0,102620.0,0.01497859]
[1737597011497,0.3592846,102630.0,102620.0,0.458141]
[1737597011669,0.29871583,102630.0,102610.0,0.15]
[1737597011874,0.29871583,102630.0,102610.0,0.15097433]
[1737597012077,0.29871583,102630.0,102620.0,1.449973]
[1737597012324,0.20136854,102630.0,102620.0,1.30486077]
[1737597012533,0.74336854,102630.0,102620.0,1.32786077]
[1737597013094,0.74336854,102630.0,102620.0,1.33684379]
[1737597013541,0.20136854,102630.0,102620.0,1.44362231]
[1737597013785,0.542,102650.0,102630.0,0.03243123]
[1737597013903,0.28281419,102650.0,102640.0,2.10590902]
[1737597014108,0.27542026,102650.0,102640.0,1.48011323]
[1737597014612,0.29227,102650.0,102640.0,1.447682]
[1737597014855,0.29227,102650.0,102640.0,0.959826]
[1737597015796,0.38961729,102650.0,102640.0,0.333093]
[1737597015945,0.40961729,102650.0,102640.0,0.15]
[1737597016148,0.39861729,102650.0,102620.0,1.019928]
[1737597016349,0.28127,102650.0,102640.0,0.03243123]